Workbook

Sheet Sheet1
A1: Table 1. The grape mTERF gene family
A2: Gene name | B2: Gene locus | C2: Chromosome location | D2: Strand | E2: CDS(bp) | F2: Protein(aa) | G2: mTERF domain location(aa) | H2: E-value
A3: VvmTERF1 | B3: GSVIVT01010499001 | C3: chr1: 21096155...21107668 | D3: − | E3: 822 | F3: =E3/3-1 -> 273 | G3: 99-237 | H3: 5.32e-24
A4: VvmTERF2 | B4: GSVIVT01023845001 | C4: chr3: 3030639...3032099 | D4: − | E4: 1065 | F4: =E4/3-1 -> 354 | G4: 72-344 | H4: 1.16e-54
A5: VvmTERF3 | B5: GSVIVT01031956001 | C5: chr3: 5686087...5687004 | D5: − | E5: 831 | F5: =E5/3-1 -> 276 | G5: 26-271 | H5: 1.39e-31
A6: VvmTERF4 | B6: GSVIVT01031970001 | C6: chr3: 5802834...5807050 | D6: − | E6: 1581 | F6: =E6/3-1 -> 526 | G6: 149-455 | H6: 2.34E-70
A7: VvmTERF5 | B7: GSVIVT01017772001 | C7: chr5: 3341975...3348425 | D7: − | E7: 1284 | F7: =E7/3-1 -> 427 | G7: 49-165 | H7: 5.59E-17
G8: 213-358 | H8: 8.20E-05
A9: VvmTERF6 | B9: GSVIVT01011061001 | C9: chr7: 1887643...1890890 | D9: + | E9: 1596 | F9: =E9/3-1 -> 531 | G9: 55-490 | H9: 0.00E+00
A10: VvmTERF7 | B10: GSVIVT01010970001 | C10: chr7: 2517645...2525482 | D10: + | E10: 1227 | F10: =E10/3-1 -> 408 | G10: 84-357 | H10: 1.88e-33
A11: VvmTERF8 | B11: GSVIVT01028380001 | C11: chr7: 6844159...6845397 | D11: + | E11: 1239 | F11: =E11/3-1 -> 412 | G11: 97-371 | H11: 7.82E-41
A12: VvmTERF9 | B12: GSVIVT01028382001 | C12: chr7: 6850176...6869742 | D12: + | E12: 2367 | F12: =E12/3-1 -> 788 | G12: 120-339 | H12: 1.64E-30
G13: 409-738 | H13: 5.17E-41
A14: VvmTERF10 | B14: GSVIVT01028383001 | C14: chr7: 6873625...6888273 | D14: + | E14: 2658 | F14: =E14/3-1 -> 885 | G14: 107-381 | H14: 4.50E-23
G15: 488-803 | H15: 2.62e-35
A16: VvmTERF11 | B16: GSVIVT01028384001 | C16: chr7: 6891622...6892722 | D16: + | E16: 1101 | F16: 366 | G16: 61-315 | H16: 1.29e-27
A17: VvmTERF12 | B17: GSVIVT01022213001 | C17: chr7: 17541013...17544022 | D17: + | E17: 1110 | F17: 369 | G17: 66-341 | H17: 6.11E-32
A18: VvmTERF13 | B18: GSVIVT01033517001 | C18: chr8: 20068603...20072280 | D18: − | E18: 1770 | F18: 589 | G18: 280-564 | H18: 6.81E-16
A19: VvmTERF14 | B19: GSVIVT01029533001 | C19: chr9: 21885971...21897453 | D19: − | E19: 2427 | F19: 808 | G19: 267-574 | H19: 6.49E-130
A20: VvmTERF15 | B20: GSVIVT01021544001 | C20: chr10: 6867305...6869519 | D20: + | E20: 738 | F20: 245 | G20: 139-227 | H20: 9.50E-20
A21: VvmTERF16 | B21: GSVIVT01026275001 | C21: chr10: 15271383...15274580 | D21: − | E21: 1692 | F21: 563 | G21: 254-520 | H21: 1.91E-10
A22: VvmTERF17 | B22: GSVIVT01015207001 | C22: chr11: 1833849...1837293 | D22: − | E22: 1662 | F22: 553 | G22: 17-338 | H22: 0.00E+00
A23: VvmTERF18 | B23: GSVIVT01012810001 | C23: chr11: 5607921...5618868 | D23: − | E23: 2160 | F23: 719 | G23: 486-637 | H23: 1.50E-12
A24: VvmTERF19 | B24: GSVIVT01001819001 | C24: chr14: 26071265 ...26073597 | D24: + | E24: 1395 | F24: 464 | G24: 192-449 | H24: 4.80E-49
A25: VvmTERF20 | B25: GSVIVT01038641001 | C25: chr16: 21269851...21283495 | D25: − | E25: 5655 | F25: 1884 | G25: 196-492 | H25: 4.90E-32
A26: VvmTERF21 | B26: GSVIVT01008120001 | C26: chr17: 5628041...5629396 | D26: − | E26: 1356 | F26: =E26/3-1 -> 451 | G26: 84-278 | H26: 4.88E-10
G27: 193-404 | H27: 5.00E-08
A28: VvmTERF22 | B28: GSVIVT01009012001 | C28: chr18: 4269303...4275210 | D28: − | E28: 1278 | F28: =E28/3-1 -> 425 | G28: 86-353 | H28: 2.86E-26
A29: VvmTERF23 | B29: GSVIVT01034475001 | C29: chr18: 20728900...20735286 | D29: − | E29: 639 | F29: =E29/3-1 -> 212 | G29: 125-196 | H29: 1.86E-08
A30: VvmTERF24 | B30: GSVIVT01037780001 | C30: chr19: 7803504...7814106 | D30: + | E30: 1443 | F30: =E30/3-1 -> 480 | G30: 195-470 | H30: 1.09E-40
A31: VvmTERF25 | B31: GSVIVT01036787001 | C31: chr19: 22546264...22547496 | D31: + | E31: 1233 | F31: =E31/3-1 -> 410 | G31: 94-368 | H31: 3.68E-45
